[Event "*** Titled Tuesday 3|2 Blitz"]
[Site "Chess.com"]
[Date "2015.04.07"]
[Round "9"]
[White "MattyDPerrine"]
[Black "1stSecond"]
[Result "0-1"]
[WhiteElo "2196"]
[BlackElo "2393"]
[TimeControl "180+2"]
[EndTime "12:56:56 PDT"]
[Termination "1stSecond won on time"]

1. d4 {[%clk 0:02:47]} 1... Nf6 {[%clk 0:03:00.4]} 2. c4 {[%clk 0:02:47]} 2...
e6 {[%clk 0:02:59.5]} 3. Nc3 {[%clk 0:02:46.7]} 3... Bb4 {[%clk 0:02:56.8]} 4.
Qc2 {[%clk 0:02:46.8]} 4... O-O {[%clk 0:02:56.5]} 5. Nf3 {[%clk 0:02:47.1]}
5... c5 {[%clk 0:02:55.5]} 6. dxc5 {[%clk 0:02:47.7]} 6... Qa5 {[%clk
0:02:55.1]} 7. Bd2 {[%clk 0:02:46.4]} 7... Qxc5 {[%clk 0:02:54.3]} 8. e3 {[%clk
0:02:47.6]} 8... d5 {[%clk 0:02:53.8]} 9. cxd5 {[%clk 0:02:45.7]} 9... exd5
{[%clk 0:02:43.4]} 10. Rc1 {[%clk 0:02:43.5]} 10... Nc6 {[%clk 0:02:43.2]} 11.
a3 {[%clk 0:02:38.8]} 11... Bxc3 {[%clk 0:02:42.2]} 12. Qxc3 {[%clk 0:02:39.4]}
12... Qe7 {[%clk 0:02:42]} 13. Qc5 {[%clk 0:02:32.6]} 13... Qxc5 {[%clk
0:02:37.6]} 14. Rxc5 {[%clk 0:02:34.5]} 14... Be6 {[%clk 0:02:38.1]} 15. Bb5
{[%clk 0:01:57.6]} 15... Ne4 {[%clk 0:02:37.7]} 16. Rc2 {[%clk 0:01:46.2]} 16...
Rfc8 {[%clk 0:02:35.4]} 17. Bd3 {[%clk 0:01:31.1]} 17... Bg4 {[%clk 0:02:33.3]}
18. h3 {[%clk 0:01:22]} 18... Bxf3 {[%clk 0:02:33.8]} 19. gxf3 {[%clk
0:01:23.9]} 19... Nxd2 {[%clk 0:02:35]} 20. Kxd2 {[%clk 0:01:23.3]} 20... d4
{[%clk 0:02:34.6]} 21. Be4 {[%clk 0:01:19.9]} 21... dxe3+ {[%clk 0:02:34.2]} 22.
fxe3 {[%clk 0:01:21.8]} 22... Rd8+ {[%clk 0:02:30.6]} 23. Ke2 {[%clk 0:01:22.5]}
23... Rd6 {[%clk 0:02:17]} 24. Rd1 {[%clk 0:01:09.9]} 24... Rh6 {[%clk
0:02:15.8]} 25. Rd7 {[%clk 0:01:03.6]} 25... Rb8 {[%clk 0:02:12.2]} 26. Rcd2
{[%clk 0:00:19.9]} 26... g6 {[%clk 0:02:09.1]} 27. Bxc6 {[%clk 0:00:17]} 27...
bxc6 {[%clk 0:02:08.2]} 28. Rxa7 {[%clk 0:00:18.9]} 28... Rxh3 {[%clk
0:02:07.9]} 29. b4 {[%clk 0:00:14.2]} 29... Re8 {[%clk 0:02:01.8]} 30. Rdd7
{[%clk 0:00:12.5]} 30... Rh2+ {[%clk 0:01:57]} 31. Kd3 {[%clk 0:00:13.8]} 31...
Rf8 {[%clk 0:01:56.8]} 32. Rac7 {[%clk 0:00:12]} 32... Ra2 {[%clk 0:01:55.4]}
33. Rxc6 {[%clk 0:00:11]} 33... Rxa3+ {[%clk 0:01:56.4]} 34. Rc3 {[%clk
0:00:12.7]} 34... Ra1 {[%clk 0:01:51.5]} 35. Ke2 {[%clk 0:00:10.6]} 35... Rb1
{[%clk 0:01:50.7]} 36. Rc4 {[%clk 0:00:10.8]} 36... h5 {[%clk 0:01:48.6]} 37. f4
{[%clk 0:00:11.5]} 37... Re8 {[%clk 0:01:46.7]} 38. Kf3 {[%clk 0:00:09.7]} 38...
Rb3 {[%clk 0:01:44.1]} 39. Re4 {[%clk 0:00:06.2]} 39... Rxe4 {[%clk 0:01:45]}
40. Kxe4 {[%clk 0:00:08.1]} 40... Rxb4+ {[%clk 0:01:46.2]} 41. Kf3 {[%clk
0:00:09.9]} 41... Kg7 {[%clk 0:01:46.3]} 42. Ra7 {[%clk 0:00:08.1]} 42... Rb1
{[%clk 0:01:45]} 43. Rc7 {[%clk 0:00:08.4]} 43... Rg1 {[%clk 0:01:45.2]} 44. Rc2
{[%clk 0:00:08.3]} 44... h4 {[%clk 0:01:39.8]} 45. Rh2 {[%clk 0:00:09.2]} 45...
Rg3+ {[%clk 0:01:40.1]} 46. Kf2 {[%clk 0:00:09.7]} 46... Rg4 {[%clk 0:01:41]}
47. Kf3 {[%clk 0:00:10.9]} 47... f5 {[%clk 0:01:41.5]} 48. e4 {[%clk 0:00:10.2]}
48... Rg3+ {[%clk 0:01:42.3]} 49. Kf2 {[%clk 0:00:11.1]} 49... fxe4 {[%clk
0:01:42.7]} 50. Rxh4 {[%clk 0:00:12.3]} 50... Rf3+ {[%clk 0:01:44]} 51. Ke2
{[%clk 0:00:13.5]} 51... Kf6 {[%clk 0:01:45]} 52. Rh8 {[%clk 0:00:10.4]} 52...
Rxf4 {[%clk 0:01:43.2]} 53. Rf8+ {[%clk 0:00:11.4]} 53... Kg5 {[%clk 0:01:43.8]}
54. Re8 {[%clk 0:00:13]} 54... Kg4 {[%clk 0:01:44.4]} 55. Ke3 {[%clk 0:00:10.8]}
55... g5 {[%clk 0:01:44.9]} 56. Re5 {[%clk 0:00:09.2]} 56... Kh4 {[%clk
0:01:36.9]} 57. Re8 {[%clk 0:00:08.3]} 57... Kg3 {[%clk 0:01:35.7]} 0-1

[Event "*** Titled Tuesday 3|2 Blitz"]
[Site "Chess.com"]
[Date "2015.04.07"]
[Round "9"]
[White "jbj"]
[Black "DrHolmes13"]
[Result "0-1"]
[WhiteElo "2263"]
[BlackElo "2230"]
[TimeControl "180+2"]
[EndTime "12:58:21 PDT"]
[Termination "DrHolmes13 won by checkmate"]

1. e4 {[%clk 0:03:01.9]} 1... c5 {[%clk 0:02:57.6]} 2. d4 {[%clk 0:03:02.4]}
2... cxd4 {[%clk 0:02:57.8]} 3. c3 {[%clk 0:03:03.7]} 3... dxc3 {[%clk
0:02:57.4]} 4. Nxc3 {[%clk 0:03:05.6]} 4... Nc6 {[%clk 0:02:58.1]} 5. Nf3 {[%clk
0:03:06.8]} 5... d6 {[%clk 0:02:57.8]} 6. Bc4 {[%clk 0:03:07.7]} 6... a6 {[%clk
0:02:59]} 7. O-O {[%clk 0:03:06.2]} 7... Nf6 {[%clk 0:02:59.4]} 8. Be3 {[%clk
0:03:03.4]} 8... Bg4 {[%clk 0:02:48.9]} 9. Qb3 {[%clk 0:03:04]} 9... e6 {[%clk
0:02:14.8]} 10. Qxb7 {[%clk 0:03:03.1]} 10... Na5 {[%clk 0:02:16.1]} 11. Qb4
{[%clk 0:03:03.6]} 11... Nxc4 {[%clk 0:02:16]} 12. Qxc4 {[%clk 0:03:03.2]} 12...
Bxf3 {[%clk 0:02:14.9]} 13. Qc6+ {[%clk 0:02:59.8]} 13... Nd7 {[%clk 0:02:15.4]}
14. gxf3 {[%clk 0:03:00.4]} 14... Be7 {[%clk 0:02:11]} 15. e5 {[%clk 0:02:58.7]}
15... d5 {[%clk 0:02:03.3]} 16. Rad1 {[%clk 0:02:54.5]} 16... Qc8 {[%clk
0:01:57.9]} 17. Qa4 {[%clk 0:02:52.2]} 17... O-O {[%clk 0:01:56.8]} 18. f4
{[%clk 0:02:53.4]} 18... Rb8 {[%clk 0:01:51.7]} 19. Rd2 {[%clk 0:02:49.8]} 19...
Rb4 {[%clk 0:01:48.5]} 20. Qd1 {[%clk 0:02:47.5]} 20... Qb7 {[%clk 0:01:46.3]}
21. b3 {[%clk 0:02:46.1]} 21... Rc8 {[%clk 0:01:44.4]} 22. Ne2 {[%clk 0:02:47]}
22... Bc5 {[%clk 0:01:33.6]} 23. Nd4 {[%clk 0:02:46.8]} 23... Bxd4 {[%clk
0:01:33.8]} 24. Rxd4 {[%clk 0:02:47.4]} 24... Nf8 {[%clk 0:01:31]} 25. Qd2
{[%clk 0:02:45.5]} 25... Rxd4 {[%clk 0:01:31.4]} 26. Bxd4 {[%clk 0:02:47.4]}
26... Ng6 {[%clk 0:01:31]} 27. Rc1 {[%clk 0:02:47.9]} 27... Nh4 {[%clk
0:01:27.7]} 28. Rxc8+ {[%clk 0:02:43.7]} 28... Qxc8 {[%clk 0:01:27.9]} 29. Qc3
{[%clk 0:02:44.7]} 29... Qxc3 {[%clk 0:01:21.5]} 30. Bxc3 {[%clk 0:02:44.7]}
30... Kf8 {[%clk 0:01:19.9]} 31. Kf1 {[%clk 0:02:41.1]} 31... Ng6 {[%clk
0:01:16.7]} 32. Bd2 {[%clk 0:02:41.3]} 32... Ke7 {[%clk 0:01:17.9]} 33. a4
{[%clk 0:02:41]} 33... Kd7 {[%clk 0:01:18.4]} 34. b4 {[%clk 0:02:41.2]} 34...
Kc6 {[%clk 0:01:19.7]} 35. Ke2 {[%clk 0:02:42.6]} 35... Ne7 {[%clk 0:01:19.9]}
36. Kd3 {[%clk 0:02:43.6]} 36... Nf5 {[%clk 0:01:20.5]} 37. Bc3 {[%clk
0:02:42.5]} 37... h5 {[%clk 0:01:20.5]} 38. Bb2 {[%clk 0:02:39.3]} 38... Nh4
{[%clk 0:01:21.2]} 39. Bc1 {[%clk 0:02:35.7]} 39... Nf3 {[%clk 0:01:20.1]} 40.
h3 {[%clk 0:02:31.3]} 40... Ng1 {[%clk 0:01:21]} 41. h4 {[%clk 0:02:11.8]} 41...
Nf3 {[%clk 0:01:21.1]} 42. Ke3 {[%clk 0:02:05]} 42... Nxh4 {[%clk 0:01:21.6]}
43. Bb2 {[%clk 0:02:06.5]} 43... g6 {[%clk 0:01:20.5]} 44. Ba1 {[%clk
0:02:03.8]} 44... Nf5+ {[%clk 0:01:14.8]} 45. Kf3 {[%clk 0:02:04.8]} 45... Nh6
{[%clk 0:01:15.7]} 46. Kg3 {[%clk 0:02:02.8]} 46... Ng4 {[%clk 0:01:16.3]} 47.
Bd4 {[%clk 0:02:00.9]} 47... Nh6 {[%clk 0:01:16.2]} 48. Bb2 {[%clk 0:01:59.9]}
48... Nf5+ {[%clk 0:01:17.2]} 49. Kf3 {[%clk 0:02:01.2]} 49... d4 {[%clk
0:01:10.3]} 50. Ke4 {[%clk 0:01:27.9]} 50... h4 {[%clk 0:01:10.3]} 51. Kf3
{[%clk 0:01:05.7]} 51... h3 {[%clk 0:01:06.9]} 52. Bc1 {[%clk 0:01:06.5]} 52...
Kd5 {[%clk 0:01:04.8]} 53. Bd2 {[%clk 0:01:06.4]} 53... d3 {[%clk 0:01:02.1]}
54. Be1 {[%clk 0:01:05.6]} 54... Kc6 {[%clk 0:00:53.9]} 55. Bd2 {[%clk
0:01:04.5]} 55... Kd5 {[%clk 0:00:52.5]} 56. Be1 {[%clk 0:01:05.6]} 56... Kc4
{[%clk 0:00:52.6]} 57. Bd2 {[%clk 0:01:03.7]} 57... Kb3 {[%clk 0:00:42.6]} 58.
b5 {[%clk 0:01:04.4]} 58... Nd4+ {[%clk 0:00:43.6]} 59. Kg3 {[%clk 0:01:04.6]}
59... Nxb5 {[%clk 0:00:44.5]} 60. axb5 {[%clk 0:01:02]} 60... axb5 {[%clk
0:00:45.8]} 61. Kxh3 {[%clk 0:01:02]} 61... Kc2 {[%clk 0:00:47.1]} 62. Ba5
{[%clk 0:01:00.9]} 62... d2 {[%clk 0:00:47.6]} 63. Bxd2 {[%clk 0:01:01.7]} 63...
Kxd2 {[%clk 0:00:49]} 64. Kg4 {[%clk 0:01:01.6]} 64... b4 {[%clk 0:00:50]} 65.
Kg5 {[%clk 0:01:03.1]} 65... b3 {[%clk 0:00:51]} 66. Kf6 {[%clk 0:01:04.4]}
66... b2 {[%clk 0:00:52.5]} 67. Kxf7 {[%clk 0:01:05.6]} 67... b1=Q {[%clk
0:00:53.4]} 68. Kxe6 {[%clk 0:01:06.7]} 68... Qf5+ {[%clk 0:00:54.3]} 69. Ke7
{[%clk 0:01:06.6]} 69... Qxf4 {[%clk 0:00:55.4]} 70. e6 {[%clk 0:01:08.2]} 70...
Qxf2 {[%clk 0:00:56.5]} 71. Ke8 {[%clk 0:01:09.3]} 71... g5 {[%clk 0:00:57.4]}
72. e7 {[%clk 0:01:10.6]} 72... g4 {[%clk 0:00:58.1]} 73. Kd7 {[%clk 0:01:11.8]}
73... Qd4+ {[%clk 0:00:59.2]} 74. Kc7 {[%clk 0:01:12.7]} 74... Qe5+ {[%clk
0:01:00]} 75. Kd7 {[%clk 0:01:14.1]} 75... Qd5+ {[%clk 0:01:01.3]} 76. Kc7
{[%clk 0:01:15.2]} 76... Qe6 {[%clk 0:01:02.3]} 77. Kd8 {[%clk 0:01:16.4]} 77...
Qd6+ {[%clk 0:01:03.6]} 78. Ke8 {[%clk 0:01:17.7]} 78... g3 {[%clk 0:01:04.7]}
79. Kf7 {[%clk 0:01:19]} 79... Qf4+ {[%clk 0:01:05.9]} 80. Ke6 {[%clk
0:01:20.1]} 80... Qe4+ {[%clk 0:01:06.9]} 81. Kd7 {[%clk 0:01:21.2]} 81... Qd5+
{[%clk 0:01:07.9]} 82. Kc7 {[%clk 0:01:22.5]} 82... Qe5+ {[%clk 0:01:08.8]} 83.
Kd7 {[%clk 0:01:23.8]} 83... Qd5+ {[%clk 0:01:10.1]} 84. Kc7 {[%clk 0:01:25.2]}
84... Qe6 {[%clk 0:01:11.3]} 85. Kd8 {[%clk 0:01:26.6]} 85... Qd6+ {[%clk
0:01:12.6]} 86. Ke8 {[%clk 0:01:28]} 86... g2 {[%clk 0:01:13.7]} 87. Kf7 {[%clk
0:01:28.6]} 87... g1=Q {[%clk 0:01:11.9]} 88. e8=Q {[%clk 0:01:29]} 88... Qgg6#
{[%clk 0:01:12.1]} 0-1

[Event "*** Titled Tuesday 3|2 Blitz"]
[Site "Chess.com"]
[Date "2015.04.07"]
[Round "9"]
[White "zmaj23"]
[Black "MITerryble"]
[Result "1-0"]
[WhiteElo "2437"]
[BlackElo "2497"]
[TimeControl "180+2"]
[EndTime "12:59:31 PDT"]
[Termination "zmaj23 won by resignation"]

1. e4 {[%clk 0:03:01.9]} 1... e6 {[%clk 0:03:00.9]} 2. d4 {[%clk 0:03:02.6]}
2... d5 {[%clk 0:03:01.9]} 3. Nd2 {[%clk 0:03:02.9]} 3... Be7 {[%clk 0:03:02.4]}
4. Bd3 {[%clk 0:03:00.8]} 4... c5 {[%clk 0:03:02.9]} 5. dxc5 {[%clk 0:02:59.7]}
5... Nf6 {[%clk 0:03:03.3]} 6. Ngf3 {[%clk 0:02:57.2]} 6... dxe4 {[%clk
0:03:03]} 7. Nxe4 {[%clk 0:02:57]} 7... Nxe4 {[%clk 0:03:03.8]} 8. Bxe4 {[%clk
0:02:57.3]} 8... Qxd1+ {[%clk 0:03:03.9]} 9. Kxd1 {[%clk 0:02:59.2]} 9... Bxc5
{[%clk 0:03:05.1]} 10. Ke2 {[%clk 0:02:52.2]} 10... Nd7 {[%clk 0:03:06.1]} 11.
Be3 {[%clk 0:02:53.4]} 11... Bxe3 {[%clk 0:03:06.9]} 12. Kxe3 {[%clk 0:02:52.4]}
12... Nc5 {[%clk 0:03:08.8]} 13. Rhd1 {[%clk 0:02:47.9]} 13... Ke7 {[%clk
0:03:05.6]} 14. Rd4 {[%clk 0:02:46.1]} 14... Nxe4 {[%clk 0:02:37.7]} 15. Kxe4
{[%clk 0:02:44.5]} 15... Rd8 {[%clk 0:01:41.2]} 16. Rxd8 {[%clk 0:02:39]} 16...
Kxd8 {[%clk 0:01:42.2]} 17. Rd1+ {[%clk 0:02:40.9]} 17... Ke7 {[%clk 0:01:43.1]}
18. Nd4 {[%clk 0:02:37.8]} 18... Bd7 {[%clk 0:01:43.5]} 19. c4 {[%clk
0:02:33.6]} 19... Rc8 {[%clk 0:01:43.2]} 20. b3 {[%clk 0:02:33.8]} 20... Rc5
{[%clk 0:01:34.9]} 21. g4 {[%clk 0:02:30.7]} 21... g5 {[%clk 0:01:18.1]} 22. f3
{[%clk 0:02:26.3]} 22... f6 {[%clk 0:01:08.5]} 23. h4 {[%clk 0:02:21.5]} 23...
gxh4 {[%clk 0:00:40.8]} 24. Rh1 {[%clk 0:02:19.4]} 24... Re5+ {[%clk 0:00:40.1]}
25. Kd3 {[%clk 0:02:17.8]} 25... Be8 {[%clk 0:00:34.6]} 26. Rxh4 {[%clk
0:02:16.2]} 26... Bg6+ {[%clk 0:00:32.4]} 27. Kd2 {[%clk 0:02:13.8]} 27... Rc5
{[%clk 0:00:31.9]} 28. f4 {[%clk 0:02:11]} 28... e5 {[%clk 0:00:31.1]} 29. f5
{[%clk 0:01:54.5]} 29... exd4 {[%clk 0:00:31.7]} 30. fxg6 {[%clk 0:01:54.4]}
30... hxg6 {[%clk 0:00:33.6]} 31. Rh7+ {[%clk 0:01:54.8]} 31... Ke6 {[%clk
0:00:34]} 32. Rxb7 {[%clk 0:01:55.5]} 32... Rg5 {[%clk 0:00:24.4]} 33. Rxa7
{[%clk 0:01:51.6]} 33... Rxg4 {[%clk 0:00:25.7]} 34. Kd3 {[%clk 0:01:50.8]}
34... g5 {[%clk 0:00:23.1]} 35. b4 {[%clk 0:01:49.3]} 35... Rg1 {[%clk
0:00:24.1]} 36. Ra6+ {[%clk 0:01:41.4]} 36... Ke5 {[%clk 0:00:24.3]} 37. Ra5+
{[%clk 0:01:41.6]} 37... Ke6 {[%clk 0:00:24.9]} 38. Kxd4 {[%clk 0:01:31.9]}
38... g4 {[%clk 0:00:24.8]} 39. c5 {[%clk 0:01:27.2]} 39... g3 {[%clk
0:00:22.9]} 40. Ke4 {[%clk 0:01:25.2]} 40... Rf1 {[%clk 0:00:21.6]} 41. Ra6+
{[%clk 0:01:24.2]} 41... Kf7 {[%clk 0:00:20.5]} 42. Ra7+ {[%clk 0:01:23.8]}
42... Kg6 {[%clk 0:00:19.9]} 43. Ra3 {[%clk 0:01:22.9]} 43... f5+ {[%clk
0:00:19.1]} 44. Ke5 {[%clk 0:01:22.1]} 44... f4 {[%clk 0:00:20.2]} 45. Ra8
{[%clk 0:01:15.1]} 45... Kf7 {[%clk 0:00:17.4]} 46. Ra7+ {[%clk 0:01:13]} 46...
Kg6 {[%clk 0:00:17.1]} 47. Ra8 {[%clk 0:01:10.8]} 47... Kh7 {[%clk 0:00:17.7]}
48. Kf6 {[%clk 0:01:08.1]} 48... g2 {[%clk 0:00:15]} 49. Ra7+ {[%clk 0:01:06.8]}
49... Kh6 {[%clk 0:00:14.2]} 50. Ra8 {[%clk 0:01:07]} 50... Kh5 {[%clk
0:00:13.8]} 51. Kf5 {[%clk 0:01:06]} 51... Kh6 {[%clk 0:00:07.4]} 52. Kf6 {[%clk
0:01:00.6]} 52... Kh5 {[%clk 0:00:08.3]} 53. Kf5 {[%clk 0:01:01.7]} 53... Kh6
{[%clk 0:00:05.9]} 54. Kf6 {[%clk 0:00:57.8]} 54... Kh7 {[%clk 0:00:05.5]} 55.
Ra7+ {[%clk 0:00:56.7]} 55... Kh8 {[%clk 0:00:04.6]} 56. Ra8+ {[%clk 0:00:54.6]}
56... Kh7 {[%clk 0:00:06]} 57. Ra7+ {[%clk 0:00:53.5]} 57... Kh6 {[%clk
0:00:07.2]} 58. Ra8 {[%clk 0:00:53.1]} 58... Kh5 {[%clk 0:00:07.7]} 59. Kf5
{[%clk 0:00:53]} 59... Kh4 {[%clk 0:00:05.8]} 60. Rg8 {[%clk 0:00:43.4]} 60...
f3 {[%clk 0:00:03.8]} 61. Kf4 {[%clk 0:00:44.4]} 61... Kh5 {[%clk 0:00:05]} 62.
b5 {[%clk 0:00:36.5]} 62... Kh6 {[%clk 0:00:03.7]} 63. b6 {[%clk 0:00:35.1]}
63... g1=Q {[%clk 0:00:02.5]} 64. Rxg1 {[%clk 0:00:34.7]} 64... Rxg1 {[%clk
0:00:04.4]} 65. Kxf3 {[%clk 0:00:33.6]} 65... Rb1 {[%clk 0:00:04.9]} 66. a4
{[%clk 0:00:30.3]} 66... Kg6 {[%clk 0:00:06.8]} 67. a5 {[%clk 0:00:29.4]} 67...
Kf5 {[%clk 0:00:08.1]} 68. a6 {[%clk 0:00:26.8]} 68... Rb3+ {[%clk 0:00:09.1]}
69. Ke2 {[%clk 0:00:25.8]} 69... Ke5 {[%clk 0:00:07.7]} 70. a7 {[%clk
0:00:25.1]} 70... Ra3 {[%clk 0:00:06.3]} 71. b7 {[%clk 0:00:26.1]} 71... Ra2+
{[%clk 0:00:04.3]} 72. Kd3 {[%clk 0:00:26.5]} 72... Kd5 {[%clk 0:00:04.3]} 73.
a8=Q {[%clk 0:00:24.8]} 1-0

[Event "*** Titled Tuesday 3|2 Blitz"]
[Site "Chess.com"]
[Date "2015.04.07"]
[Round "9"]
[White "alturas_pacificas"]
[Black "petrpalachev"]
[Result "1/2-1/2"]
[WhiteElo "2138"]
[BlackElo "2397"]
[TimeControl "180+2"]
[EndTime "13:00:27 PDT"]
[Termination "Game drawn by agreement"]

1. d4 {[%clk 0:03:01.9]} 1... Nf6 {[%clk 0:03:00.4]} 2. Bf4 {[%clk 0:02:58.8]}
2... d5 {[%clk 0:02:59.7]} 3. e3 {[%clk 0:02:56.5]} 3... c5 {[%clk 0:03:00.5]}
4. c3 {[%clk 0:02:55.5]} 4... Qb6 {[%clk 0:02:59.5]} 5. Qb3 {[%clk 0:02:55.1]}
5... Nc6 {[%clk 0:02:59.2]} 6. Nd2 {[%clk 0:02:54.5]} 6... c4 {[%clk 0:02:55.5]}
7. Qc2 {[%clk 0:02:52.3]} 7... g6 {[%clk 0:02:55.8]} 8. e4 {[%clk 0:02:42.8]}
8... Nxe4 {[%clk 0:02:54.9]} 9. Nxe4 {[%clk 0:02:40]} 9... dxe4 {[%clk
0:02:56.8]} 10. Bxc4 {[%clk 0:02:39.1]} 10... Bg7 {[%clk 0:02:57.8]} 11. Qb3
{[%clk 0:02:33]} 11... Qxb3 {[%clk 0:02:58]} 12. Bxb3 {[%clk 0:02:32.5]} 12...
e5 {[%clk 0:02:59.9]} 13. dxe5 {[%clk 0:02:29.2]} 13... Nxe5 {[%clk 0:03:01.8]}
14. Bxe5 {[%clk 0:02:22.7]} 14... Bxe5 {[%clk 0:03:01.9]} 15. Ne2 {[%clk
0:02:23.4]} 15... f5 {[%clk 0:03:00.2]} 16. O-O {[%clk 0:02:21.3]} 16... Ke7
{[%clk 0:03:01.7]} 17. Rfd1 {[%clk 0:02:21.8]} 17... Be6 {[%clk 0:03:03.2]} 18.
Bxe6 {[%clk 0:02:20.5]} 18... Kxe6 {[%clk 0:03:05.1]} 19. Nd4+ {[%clk
0:02:19.7]} 19... Ke7 {[%clk 0:03:06.2]} 20. h3 {[%clk 0:02:13.3]} 20... Rhd8
{[%clk 0:03:07.4]} 21. Nb3 {[%clk 0:02:12.2]} 21... b6 {[%clk 0:03:07.5]} 22.
Kf1 {[%clk 0:02:12.1]} 22... Rxd1+ {[%clk 0:02:59.6]} 23. Rxd1 {[%clk
0:02:11.7]} 23... Ke6 {[%clk 0:03:00.5]} 24. Ke2 {[%clk 0:02:08.3]} 24... Rc8
{[%clk 0:03:00.7]} 25. Nd4+ {[%clk 0:02:04.4]} 25... Bxd4 {[%clk 0:03:01.5]} 26.
Rxd4 {[%clk 0:02:06.3]} 26... Rc7 {[%clk 0:02:58.2]} 27. Rd8 {[%clk 0:01:58.3]}
27... Ke5 {[%clk 0:02:40.4]} 28. Re8+ {[%clk 0:01:52.9]} 28... Kf6 {[%clk
0:02:40.1]} 29. Rd8 {[%clk 0:01:49]} 29... Ke5 {[%clk 0:02:40.8]} 30. Re8+
{[%clk 0:01:44.8]} 30... Kd5 {[%clk 0:02:42.2]} 31. Rd8+ {[%clk 0:01:43.6]}
31... Ke6 {[%clk 0:02:43.3]} 32. g3 {[%clk 0:01:40.3]} 32... Kf6 {[%clk
0:02:29.3]} 33. h4 {[%clk 0:01:39.8]} 33... h6 {[%clk 0:02:30.1]} 34. Rd6+
{[%clk 0:01:38.1]} 34... Kg7 {[%clk 0:02:29.8]} 35. Ke3 {[%clk 0:01:38.2]} 35...
Re7 {[%clk 0:02:28.2]} 36. Rd8 {[%clk 0:01:31.9]} 36... g5 {[%clk 0:02:27.4]}
37. hxg5 {[%clk 0:01:30.1]} 37... hxg5 {[%clk 0:02:29.3]} 38. Rd6 {[%clk
0:01:31.3]} 38... Kf7 {[%clk 0:02:26.4]} 39. c4 {[%clk 0:01:26.8]} 39... Rc7
{[%clk 0:02:05.4]} 40. b3 {[%clk 0:01:25.5]} 40... Re7 {[%clk 0:02:05.8]} 41. b4
{[%clk 0:01:09]} 41... Rc7 {[%clk 0:02:05.8]} 42. Kd4 {[%clk 0:01:09.7]} 42...
Re7 {[%clk 0:02:06.1]} 43. c5 {[%clk 0:01:08.1]} 43... bxc5+ {[%clk 0:02:06.1]}
44. bxc5 {[%clk 0:01:10]} 44... f4 {[%clk 0:02:07.4]} 45. gxf4 {[%clk
0:01:10.2]} 45... gxf4 {[%clk 0:02:09.3]} 46. Rh6 {[%clk 0:01:05.7]} 46... Ke8
{[%clk 0:01:58.4]} 47. Rh1 {[%clk 0:00:55.7]} 47... Kd7 {[%clk 0:01:57.2]} 48.
Re1 {[%clk 0:00:55.6]} 48... e3 {[%clk 0:01:57.9]} 49. fxe3 {[%clk 0:00:55.6]}
49... fxe3 {[%clk 0:01:59.1]} 50. Rxe3 {[%clk 0:00:54.5]} 50... Rh7 {[%clk
0:02:01]} 51. Kc4 {[%clk 0:00:48.4]} 51... Rh1 {[%clk 0:01:54.7]} 52. Rd3+
{[%clk 0:00:42.9]} 52... Kc7 {[%clk 0:01:54]} 53. a4 {[%clk 0:00:37.2]} 53... a6
{[%clk 0:01:49.3]} 54. Kb4 {[%clk 0:00:35.1]} 54... Rb1+ {[%clk 0:01:35]} 55.
Ka5 {[%clk 0:00:32.9]} 55... Kc6 {[%clk 0:01:31.9]} 56. Rc3 {[%clk 0:00:21]}
56... Rb8 {[%clk 0:01:30.9]} 57. Rc1 {[%clk 0:00:20.1]} 57... Rh8 {[%clk
0:01:28.7]} 58. Rc2 {[%clk 0:00:19.3]} 58... Rf8 {[%clk 0:01:29.5]} 59. Rc1
{[%clk 0:00:20.2]} 59... Rc8 {[%clk 0:01:30.4]} 60. Rc2 {[%clk 0:00:20.8]} 60...
Rb8 {[%clk 0:01:30.6]} 61. Rc1 {[%clk 0:00:21.8]} 61... Ra8 {[%clk 0:01:29.7]}
62. Rc2 {[%clk 0:00:22.7]} 62... Rd8 {[%clk 0:01:30.5]} 63. Rc1 {[%clk 0:00:24]}
63... Rd4 {[%clk 0:01:31.7]} 64. Rc2 {[%clk 0:00:24.1]} 64... Re4 {[%clk
0:01:32.3]} 65. Rc1 {[%clk 0:00:24.8]} 65... Rf4 {[%clk 0:01:33.8]} 66. Rc2
{[%clk 0:00:24.9]} 66... Rg4 {[%clk 0:01:35.1]} 67. Rc1 {[%clk 0:00:23.9]} 67...
Rh4 {[%clk 0:01:36.6]} 68. Rc2 {[%clk 0:00:25.3]} 68... Rh8 {[%clk 0:01:38.5]}
69. Rc1 {[%clk 0:00:26.4]} 69... Rh4 {[%clk 0:01:40.4]} 70. Rc3 {[%clk
0:00:26.9]} 70... Rh8 {[%clk 0:01:40.9]} 71. Rc2 {[%clk 0:00:27.8]} 71... Rh4
{[%clk 0:01:33.1]} 72. Ra2 {[%clk 0:00:26.7]} 72... Rh8 {[%clk 0:01:22.3]} 73.
Rc2 {[%clk 0:00:27.2]} 73... Re8 {[%clk 0:01:22.3]} 74. Rc1 {[%clk 0:00:27.7]}
74... Rf8 {[%clk 0:01:22.5]} 75. Rc2 {[%clk 0:00:28.8]} 75... Rg8 {[%clk
0:01:23.9]} 76. Rc1 {[%clk 0:00:30.2]} 76... Rb8 {[%clk 0:01:23.4]} 77. Rc2
{[%clk 0:00:30]} 77... Rc8 {[%clk 0:01:24.6]} 78. Rc1 {[%clk 0:00:30.4]} 78...
Re8 {[%clk 0:01:24]} 79. Rc2 {[%clk 0:00:30.6]} 79... Re4 {[%clk 0:01:25.6]} 80.
Ra2 {[%clk 0:00:28.5]} 80... Re8 {[%clk 0:01:14.9]} 81. Rc2 {[%clk 0:00:28.8]}
81... Rd8 {[%clk 0:01:15.6]} 82. Kb4 {[%clk 0:00:28.5]} 82... Rd4+ {[%clk
0:01:13.7]} 83. Rc4 {[%clk 0:00:28.9]} 83... a5+ {[%clk 0:01:11.4]} 84. Kc3
{[%clk 0:00:22.8]} 84... Rd5 {[%clk 0:01:07.5]} 85. Kb3 {[%clk 0:00:20.8]} 85...
Rd1 {[%clk 0:01:00.1]} 86. Rc2 {[%clk 0:00:19.3]} 86... Rb1+ {[%clk 0:00:59]}
87. Ka3 {[%clk 0:00:20.5]} 87... Rb4 {[%clk 0:00:59.7]} 88. Rc3 {[%clk
0:00:21.3]} 88... Rd4 {[%clk 0:01:00.7]} 89. Rc2 {[%clk 0:00:21.9]} 89... Re4
{[%clk 0:01:01.9]} 90. Rc3 {[%clk 0:00:23.1]} 90... Rf4 {[%clk 0:01:03.3]} 91.
Rc2 {[%clk 0:00:24.3]} 91... Rf3+ {[%clk 0:01:04.8]} 92. Ka2 {[%clk 0:00:24.3]}
92... Rf4 {[%clk 0:01:06.7]} 93. Ka3 {[%clk 0:00:25.5]} 93... Rf3+ {[%clk
0:01:07.4]} 94. Ka2 {[%clk 0:00:26.5]} 94... Rf4 {[%clk 0:01:09.1]} 95. Ka3
{[%clk 0:00:27.9]} 95... Rf3+ {[%clk 0:01:10.6]} 96. Ka2 {[%clk 0:00:28.8]}
96... Rf5 {[%clk 0:01:12.3]} 97. Ka3 {[%clk 0:00:29.3]} 97... Rxc5 {[%clk
0:01:12.6]} 98. Rxc5+ {[%clk 0:00:29.5]} 98... Kxc5 {[%clk 0:01:14.5]} 99. Kb3
{[%clk 0:00:30.9]} 99... Kd4 {[%clk 0:01:16.4]} 100. Ka3 {[%clk 0:00:32.3]}
100... Kc4 {[%clk 0:01:18.3]} 101. Ka2 {[%clk 0:00:33.6]} 101... Kb4 {[%clk
0:01:20.2]} 102. Ka1 {[%clk 0:00:35]} 102... Kxa4 {[%clk 0:01:22.1]} 103. Ka2
{[%clk 0:00:36.4]} 103... Kb4 {[%clk 0:01:24]} 104. Ka1 {[%clk 0:00:37.8]}
104... Ka3 {[%clk 0:01:25.9]} 105. Kb1 {[%clk 0:00:39]} 105... a4 {[%clk
0:01:27.8]} 106. Ka1 {[%clk 0:00:40.6]} 106... Kb3 {[%clk 0:01:29.7]} 107. Kb1
{[%clk 0:00:42.2]} 107... a3 {[%clk 0:01:31.6]} 108. Ka1 {[%clk 0:00:43.8]}
108... Kb4 {[%clk 0:01:32.8]} 109. Kb1 {[%clk 0:00:45.3]} 109... Ka4 {[%clk
0:01:34.7]} 110. Ka1 {[%clk 0:00:46.8]} 110... Kb3 {[%clk 0:01:36.6]} 111. Kb1
{[%clk 0:00:48.3]} 111... a2+ {[%clk 0:01:36.8]} 1/2-1/2